fUST/lending_fUST_20260111
["ID","MTS","AMOUNT","RATE_DAILY","PERIOD"]
[401306858,1768121443215,-500.0,0.00013698,2]
[401306859,1768121443225,-500.0,0.00013698,2]
[401306860,1768121443235,-500.0,0.00013698,2]
[401306861,1768121443245,-500.0,0.00013698,2]
[401306862,1768121443255,-374.07409846,0.00013698,2]
[401306863,1768121443265,-500.0,0.00013698,2]
[401306864,1768121443274,-500.0,0.00013698,2]
[401306865,1768121443284,-500.0,0.00013698,2]
[401306866,1768121443295,-500.0,0.00013698,2]
[401306867,1768121443305,-500.0,0.00013698,2]
[401306868,1768121443315,-500.0,0.00013698,2]
[401306869,1768121443325,-500.0,0.00013698,2]
[401306870,1768121443334,-534.57834013,0.00013698,2]
[401306871,1768121443344,-500.0,0.00013698,2]
[401306872,1768121443354,-500.0,0.00013698,2]
[401306873,1768121443364,-500.0,0.00013698,2]
[401306874,1768121443373,-500.0,0.00013698,2]
[401306875,1768121443382,-500.0,0.00013698,2]
[401306876,1768121443391,-500.0,0.00013698,2]
[401306877,1768121443400,-500.0,0.00013698,2]
[401306878,1768121443409,-500.0,0.00013698,2]
[401306879,1768121443418,-239.37126777,0.00013698,2]
[401306880,1768121443427,-150.1,0.00013699,2]
[401306881,1768121443436,-500.0,0.00013699,2]
[401306882,1768121443445,-500.0,0.00013699,2]
[401306883,1768121443454,-500.0,0.00013699,2]
[401306884,1768121443464,-500.0,0.00013699,2]
[401306885,1768121443473,-611.85295008,0.00013699,2]
[401306886,1768121443482,-500.0,0.00013699,2]
[401306887,1768121443491,-500.0,0.00013699,2]
[401306888,1768121443499,-500.0,0.00013699,2]
[401306889,1768121443509,-500.0,0.00013699,2]
[401306890,1768121443518,-500.0,0.00013699,2]
[401306891,1768121443528,-500.0,0.00013699,2]
[401306892,1768121443536,-159.05967354,0.00013699,2]
[401306893,1768121443545,-500.0,0.00013699,2]
[401306894,1768121443554,-252.75899042,0.00013699,2]
[401306895,1768121443564,-500.0,0.00013699,2]
[401306896,1768121443572,-192.77974704,0.00013699,2]
[401306897,1768121443581,-500.0,0.00013699,2]
[401306898,1768121443590,-500.0,0.00013699,2]
[401306899,1768121443599,-500.0,0.00013699,2]
[401306900,1768121443607,-500.0,0.00013699,2]
[401306901,1768121443616,-500.0,0.00013699,2]
[401306902,1768121443625,-500.0,0.00013699,2]
[401306903,1768121443634,-500.0,0.00013699,2]
[401306904,1768121443643,-500.0,0.00013699,2]
[401306905,1768121443652,-500.0,0.00013699,2]
[401306906,1768121443660,-500.0,0.00013699,2]
[401306907,1768121443669,-500.0,0.00013699,2]
[401306908,1768121443679,-500.0,0.00013699,2]
[401306909,1768121443687,-500.0,0.00013699,2]
[401306910,1768121443696,-500.0,0.00013699,2]
[401306911,1768121443705,-250.0,0.00013699,2]
[401306912,1768121443715,-500.93038909,0.00013699,2]
[401306913,1768121443724,-500.0,0.00013699,2]
[401306914,1768121443732,-500.0,0.00013699,2]
[401306915,1768121443741,-500.0,0.00013699,2]
[401306916,1768121443750,-500.0,0.00013699,2]
[401306917,1768121443759,-500.0,0.00013699,2]
[401306918,1768121443768,-500.0,0.00013699,2]
[401306919,1768121443777,-500.0,0.00013699,2]
[401306920,1768121443786,-500.0,0.00013699,2]
[401306921,1768121443795,-500.31275461,0.00013699,2]
[401306922,1768121443803,-413.61388111,0.00013699,2]
[401306923,1768121443813,-500.0,0.00013699,2]
[401306924,1768121443822,-500.0,0.00013699,2]
[401306925,1768121443831,-500.0,0.00013699,2]
[401306926,1768121443840,-500.0,0.00013699,2]
[401306927,1768121443848,-500.0,0.00013699,2]
[401306928,1768121443857,-500.0,0.00013699,2]
[401306929,1768121443866,-252.81793801,0.00013699,2]
[401306930,1768121443875,-500.0,0.00013699,2]
[401306931,1768121443884,-504.31837873,0.00013699,2]
[401306932,1768121443893,-500.0,0.00013699,2]
[401306933,1768121443902,-345.73139261,0.00013699,2]
[401306934,1768121443911,-500.0,0.00013699,2]
[401306935,1768121443920,-500.0,0.00013699,2]
[401306936,1768121443929,-500.0,0.00013699,2]
[401306937,1768121443938,-500.0,0.00013699,2]
[401306938,1768121443947,-268.13097792,0.00013699,2]
[401306939,1768121443955,-500.0,0.00013699,2]
[401306940,1768121443964,-500.0,0.00013699,2]
[401306941,1768121443972,-500.0,0.00013699,2]
[401306942,1768121443982,-441.79967602,0.00013699,2]
[401306943,1768121443991,-501.32276914,0.00013699,2]
[401306944,1768121444000,-500.0,0.00013699,2]
[401306945,1768121444009,-500.0,0.00013699,2]
[401306946,1768121444018,-500.0,0.00013699,2]
[401306947,1768121444027,-500.0,0.00013699,2]
[401306948,1768121444035,-500.0,0.00013699,2]
[401306949,1768121444043,-295.9151759,0.00013699,2]
[401306950,1768121444050,-500.0,0.00013699,2]
[401306951,1768121444058,-500.0,0.00013699,2]
[401306952,1768121444067,-500.0,0.00013699,2]
[401306953,1768121444080,-500.0,0.00013699,2]
[401306954,1768121444089,-500.0,0.00013699,2]
[401306955,1768121444098,-640.85,0.000137,2]
[401306957,1768121444190,-3678.94448978,0.000138,2]
[401306959,1768121444201,-502.34729237,0.00013821,2]
[401306961,1768121444210,-1000.0,0.00013821,2]
[401306962,1768121444219,-1000.0,0.00013821,2]
[401306964,1768121444228,-1000.0,0.00013821,2]
[401306966,1768121444238,-506.38443798,0.00013821,2]
[401306968,1768121444247,-1000.0,0.00013821,2]
[401306970,1768121444256,-1000.0,0.00013821,2]
[401306971,1768121444265,-1046.83647191,0.00013821,2]
[401306973,1768121444275,-1113.91769968,0.00013821,2]
[401306975,1768121444284,-1000.0,0.00013821,2]
[401306977,1768121444293,-1000.0,0.00013821,2]
[401306978,1768121444303,-1000.0,0.00013821,2]
[401306980,1768121444312,-1000.0,0.00013821,2]
[401306981,1768121444321,-1000.0,0.00013821,2]
[401306982,1768121444331,-1000.0,0.00013821,2]
[401306983,1768121444340,-1000.0,0.00013821,2]
[401306984,1768121444350,-1000.0,0.00013821,2]
[401306985,1768121444359,-1000.0,0.00013821,2]
[401306986,1768121444368,-1000.0,0.00013821,2]
[401306987,1768121444378,-1000.0,0.00013821,2]
[401306988,1768121444388,-1000.0,0.00013821,2]
[401306989,1768121444399,-1000.0,0.00013821,2]
[401306990,1768121444408,-1000.0,0.00013821,2]
[401306991,1768121444419,-1000.0,0.00013821,2]
[401306992,1768121444429,-1000.0,0.00013821,2]
[401306993,1768121444438,-1000.0,0.00013821,2]
[401306994,1768121444448,-1002.2053155,0.00013821,2]
[401306995,1768121444458,-178.09775665,0.00013821,2]
[401306996,1768121444467,-1000.0,0.00013821,2]
[401306997,1768121444476,-501.6206004,0.00013821,2]
[401306998,1768121444486,-1000.0,0.00013821,2]
[401306999,1768121444496,-1000.0,0.00013821,2]
[401307000,1768121444506,-1000.0,0.00013821,2]
[401307001,1768121444515,-1000.0,0.00013821,2]
[401307002,1768121444525,-1000.0,0.00013821,2]
[401307003,1768121444535,-1000.0,0.00013821,2]
[401307004,1768121444544,-1000.0,0.00013821,2]
[401307005,1768121444554,-973.2526551,0.00013821,2]
[401307006,1768121444563,-1000.0,0.00013821,2]
[401307007,1768121444574,-1002.56714759,0.00013821,2]
[401307008,1768121444585,-877.75810228,0.00013821,2]
[401307009,1768121444595,-500.0,0.00013836,2]
[401307010,1768121444605,-620.9785477,0.00013973,2]
[401307011,1768121444616,-3588.20550987,0.00014012,2]
[401307012,1768121444627,-640.85,0.000142,2]
[401307013,1768121444637,-152.58,0.000142,2]
[401307014,1768121444649,-1000.0,0.00014247,2]
[401307015,1768121444661,-1000.0,0.00014247,2]
[401307016,1768121444671,-1000.0,0.00014247,2]
[401307017,1768121444681,-1002.38932755,0.00014247,2]
[401307018,1768121444691,-469.53593685,0.00014247,2]
[401307019,1768121444701,-1000.0,0.00014247,2]
[401307020,1768121444713,-661.478767,0.00014247,2]
[401307021,1768121444723,-1000.0,0.00014247,2]
[401307022,1768121444733,-1000.0,0.00014247,2]
[401307023,1768121444745,-1000.0,0.00014247,2]
[401307024,1768121444754,-1000.0,0.00014247,2]
[401307025,1768121444764,-1000.0,0.00014247,2]
[401307026,1768121444773,-283.3787305,0.00014247,2]
[401307027,1768121444783,-1000.0,0.00014247,2]
[401307028,1768121444794,-313.64870907,0.00014247,2]
[401307029,1768121444804,-1000.0,0.00014247,2]
[401307030,1768121444814,-1001.8641087,0.00014247,2]
[401307031,1768121444824,-1000.0,0.00014247,2]
[401307032,1768121444834,-1000.0,0.00014247,2]
[401307033,1768121444846,-1029.61129365,0.00014247,2]
[401307034,1768121444857,-171.67593478,0.00014247,2]
[401307035,1768121444867,-1003.14554213,0.00014247,2]
[401307036,1768121444878,-1000.0,0.00014247,2]
[401307037,1768121444890,-1000.62599215,0.00014247,2]
[401307039,1768121444900,-1000.0,0.00014247,2]
[401307040,1768121444910,-1000.0,0.00014247,2]
[401307041,1768121444925,-1000.0,0.00014247,2]
[401307042,1768121444946,-1000.0,0.00014247,2]
[401307043,1768121444957,-1000.0,0.00014247,2]
[401307045,1768121444967,-1000.0,0.00014247,2]
[401307047,1768121444977,-1000.0,0.00014247,2]
[401307049,1768121444986,-1000.0,0.00014247,2]
[401307050,1768121444995,-500.0,0.00014247,2]
[401307051,1768121445005,-1000.0,0.00014247,2]
[401307052,1768121445015,-1000.0,0.00014247,2]
[401307053,1768121445025,-1000.0,0.00014247,2]
[401307054,1768121445034,-875.35271766,0.00014247,2]
[401307055,1768121445044,-1000.0,0.00014247,2]
[401307056,1768121445054,-1000.0,0.00014247,2]
[401307057,1768121445065,-1000.0,0.00014247,2]
[401307058,1768121445077,-1000.0,0.00014247,2]
[401307059,1768121445087,-1000.0,0.00014247,2]
[401307060,1768121445097,-500.0,0.00014247,2]
[401307061,1768121445107,-1000.0,0.00014247,2]
[401307062,1768121445117,-505.42705469,0.00014247,2]
[401307063,1768121445127,-1000.0,0.00014247,2]
[401307064,1768121445137,-1000.0,0.00014247,2]
[401307065,1768121445147,-638.41119879,0.00014247,2]
[401307066,1768121445156,-1000.0,0.00014247,2]
[401307067,1768121445172,-1000.0,0.00014247,2]
[401307068,1768121445187,-443.77041137,0.00014247,2]
[401307069,1768121445202,-1000.0,0.00014247,2]
[401307070,1768121445213,-1000.0,0.00014247,2]
[401307071,1768121445226,-1000.0,0.00014247,2]
[401307072,1768121445239,-1512.80470062,0.00014368,2]
[401307073,1768121445252,-323.03430659,0.00014368,2]
[401307074,1768121445266,-1500.0,0.00014368,2]
[401307075,1768121445282,-500.80134157,0.00014368,2]
[401307076,1768121445295,-1500.0,0.00014368,2]
[401307077,1768121445310,-1500.0,0.00014368,2]
[401307078,1768121445324,-1500.0,0.00014368,2]
[401307079,1768121445336,-1500.0,0.00014368,2]
[401307080,1768121445348,-500.0,0.00014368,2]
[401307081,1768121445360,-1500.0,0.00014368,2]
[401307082,1768121445372,-1500.0,0.00014368,2]
[401307083,1768121445385,-1500.0,0.00014368,2]
[401307084,1768121445397,-1500.0,0.00014368,2]
[401307085,1768121445410,-1500.0,0.00014368,2]
[401307086,1768121445420,-168.36851892,0.00014368,2]
[401307087,1768121445432,-554.02767991,0.00014368,2]
[401307088,1768121445444,-1500.0,0.00014368,2]
[401307089,1768121445457,-1500.0,0.00014368,2]
[401307090,1768121445470,-1500.0,0.00014368,2]
[401307091,1768121445482,-1500.0,0.00014368,2]
[401307092,1768121445495,-1500.0,0.00014368,2]
[401307093,1768121445509,-793.78310386,0.00014368,2]
[401307094,1768121445523,-263.96834089,0.00014368,2]
[401307095,1768121445535,-1500.0,0.00014368,2]
[401307096,1768121445546,-500.0,0.00014368,2]
[401307097,1768121445557,-223.48736773,0.00014368,2]
[401307098,1768121445567,-1500.0,0.00014368,2]
[401307099,1768121445581,-1500.0,0.00014368,2]
[401307100,1768121445595,-1500.0,0.00014368,2]
[401307101,1768121445608,-500.0,0.00014368,2]
[401307102,1768121445619,-5000.0,0.0001451,2]
[401307103,1768121445631,-711.32734021,0.00014537,2]
[401307104,1768121445643,-640.85,0.000147,2]
[401307105,1768121445656,-100000.0,0.00014736,2]
[401307106,1768121445667,-1000.0,0.00014743,2]
[401307107,1768121445679,-1000.0,0.00014743,2]
[401307108,1768121445691,-1514.12213244,0.00014795,2]
[401307109,1768121445703,-155.09397851,0.00014795,2]
[401307110,1768121445717,-488.64589349,0.00014795,2]
[401307111,1768121445731,-602.53259662,0.00014795,2]
[401307112,1768121445742,-1499.24471264,0.00014795,2]
[401307113,1768121445753,-1500.0,0.00014795,2]
[401307114,1768121445764,-839.58703801,0.00014795,2]
[401307115,1768121445776,-1500.0,0.00014795,2]
[401307116,1768121445787,-661.95893033,0.00014795,2]
[401307117,1768121445799,-1500.0,0.00014795,2]
[401307118,1768121445810,-1500.0,0.00014795,2]
[401307119,1768121445821,-1640.95571878,0.00014795,2]
[401307120,1768121445832,-514.14829436,0.00014795,2]
[401307121,1768121445843,-1000.0,0.00014795,2]
[401307122,1768121445854,-1236.28209818,0.00014795,2]
[401307123,1768121445865,-1001.3782102,0.00014795,2]
[401307124,1768121445876,-1500.0,0.00014795,2]
[401307125,1768121445887,-674.14847626,0.00014795,2]
[401307126,1768121445898,-501.33075681,0.00014795,2]
[401307127,1768121445911,-1640.84533084,0.00014795,2]
[401307128,1768121445922,-1500.0,0.00014795,2]
[401307129,1768121445934,-1482.84709438,0.00014795,2]
[401307130,1768121445948,-503.75899236,0.00014795,2]
[401307132,1768121445960,-1500.0,0.00014795,2]
[401307134,1768121445972,-788.05151213,0.00014795,2]
[401307135,1768121445984,-1500.0,0.00014795,2]
[401307136,1768121445996,-1608.00999349,0.00014795,2]
[401307137,1768121446008,-500.76011771,0.00014795,2]
[401307138,1768121446020,-1500.0,0.00014795,2]
[401307139,1768121446032,-1500.0,0.00014795,2]
[401307140,1768121446043,-1500.0,0.00014795,2]
[401307141,1768121446055,-1500.0,0.00014795,2]
[401307142,1768121446067,-1003.80919542,0.00014795,2]
[401307143,1768121446089,-1516.76085072,0.00014795,2]
[401307144,1768121446102,-304.84096496,0.00014795,2]
[401307145,1768121446114,-1500.0,0.00014795,2]
[401307146,1768121446125,-152.58,0.000148,2]
[401307147,1768121446137,-500.8125859,0.00014916,2]
[401307148,1768121446150,-650.76965904,0.00014916,2]
[401307149,1768121446162,-1191.81021696,0.00014916,2]
[401307151,1768121446174,-1465.81779273,0.00014916,2]
[401307153,1768121446185,-2000.0,0.00014916,2]
[401307155,1768121446197,-2000.0,0.00014916,2]
[401307157,1768121446209,-1510.52551,0.00014916,2]
[401307158,1768121446220,-1001.19360014,0.00014916,2]
[401307160,1768121446231,-2000.0,0.00014916,2]
[401307162,1768121446242,-365.99256781,0.00014916,2]
[401307164,1768121446255,-2000.0,0.00014916,2]
[401307165,1768121446266,-2000.0,0.00014916,2]
[401307167,1768121446278,-2000.0,0.00014916,2]
[401307168,1768121446290,-2000.0,0.00014916,2]
[401307172,1768121446422,-2000.0,0.00014916,2]
[401307173,1768121446438,-1000.0,0.00014916,2]
[401307174,1768121446448,-2000.0,0.00014916,2]
[401307175,1768121446458,-2000.0,0.00014916,2]
[401307176,1768121446468,-381.0,0.00014994,2]
[401307177,1768121446477,-1000.0,0.00015,2]
[401307178,1768121446487,-381.0,0.0001503,2]
[401307179,1768121446496,-585.11053,0.00015068,2]
[401307180,1768121446506,-800.0,0.00015068,2]
[401307181,1768121446515,-381.0,0.00015134,2]
[401307182,1768121446525,-151.0,0.00015207,2]
[401307183,1768121446535,-151.0,0.00015207,2]
[401307184,1768121446545,-151.0,0.00015207,2]
[401307185,1768121446556,-461.67526834,0.00015207,2]
[401307186,1768121446565,-151.0,0.00015207,2]
[401307187,1768121446575,-151.0,0.00015207,2]
[401307188,1768121446584,-151.0,0.00015207,2]
[401307189,1768121446593,-151.0,0.00015207,2]
[401307190,1768121446603,-151.0,0.00015207,2]
[401307191,1768121446614,-151.0,0.00015207,2]
[401307192,1768121446624,-151.0,0.00015207,2]
[401307193,1768121446635,-151.0,0.00015207,2]
[401307194,1768121446646,-151.0,0.00015207,2]
[401307195,1768121446656,-250.15738416,0.00015207,2]
[401307196,1768121446667,-151.0,0.00015207,2]
[401307197,1768121446676,-151.0,0.00015207,2]
[401307198,1768121446686,-151.0,0.00015207,2]
[401307199,1768121446695,-151.0,0.00015207,2]
[401307200,1768121446705,-151.0,0.00015207,2]
[401307201,1768121446714,-151.0,0.00015207,2]
[401307202,1768121446725,-151.0,0.00015207,2]
[401307203,1768121446737,-151.0,0.00015207,2]
[401307204,1768121446748,-151.0,0.00015207,2]
[401307205,1768121446759,-151.0,0.00015207,2]
[401307206,1768121446769,-151.0,0.00015207,2]
[401307207,1768121446779,-151.0,0.00015207,2]
[401307208,1768121446789,-151.0,0.00015207,2]
[401307209,1768121446799,-151.0,0.00015207,2]
[401307210,1768121446809,-151.0,0.00015207,2]
[401307211,1768121446820,-151.0,0.00015207,2]
[401307212,1768121446830,-151.0,0.00015207,2]
[401307213,1768121446840,-151.0,0.00015207,2]
[401307214,1768121446850,-151.0,0.00015207,2]
[401307215,1768121446860,-151.0,0.00015207,2]
[401307216,1768121446872,-151.0,0.00015207,2]
[401307217,1768121446883,-151.0,0.00015207,2]
[401307218,1768121446893,-151.0,0.00015207,2]
[401307219,1768121446903,-151.0,0.00015207,2]
[401307220,1768121446915,-151.0,0.00015207,2]
[401307221,1768121446926,-151.0,0.00015207,2]
[401307222,1768121446935,-151.0,0.00015207,2]
[401307223,1768121446946,-151.0,0.00015207,2]
[401307224,1768121446956,-151.0,0.00015207,2]
[401307225,1768121446966,-151.0,0.00015207,2]
[401307226,1768121446976,-151.0,0.00015207,2]
[401307227,1768121446986,-223.13477496,0.00015207,2]
[401307228,1768121446997,-381.0,0.00015232,2]
[401307229,1768121447007,-640.85,0.000153,2]
[401307230,1768121447017,-381.0,0.00015335,2]
[401307231,1768121447027,-1143.18421046,0.00015342,2]
[401307232,1768121447037,-2000.0,0.00015342,2]
[401307233,1768121447047,-500.0,0.00015342,2]
[401307234,1768121447058,-2000.0,0.00015342,2]
[401307235,1768121447067,-2000.0,0.00015342,2]
[401307236,1768121447083,-2000.0,0.00015342,2]
[401307237,1768121447092,-2000.0,0.00015342,2]
[401307238,1768121447103,-1004.51727604,0.00015342,2]
[401307239,1768121447115,-2000.0,0.00015342,2]
[401307240,1768121447125,-2000.0,0.00015342,2]
[401307241,1768121447135,-1144.01857865,0.00015342,2]
[401307242,1768121447151,-1501.01375621,0.00015342,2]
[401307243,1768121447161,-2000.0,0.00015342,2]
[401307244,1768121447170,-1087.80747029,0.00015364,2]
[401307245,1768121447179,-381.0,0.00015378,2]
[401307246,1768121447188,-381.0,0.00015392,2]
[401307247,1768121447198,-152.58,0.000154,2]
[401307248,1768121447208,-381.0,0.00015402,2]
[401307249,1768121447219,-381.0,0.00015418,2]
[401307250,1768121447230,-381.0,0.00015426,2]
[401307251,1768121447240,-1167.31327235,0.00015464,2]
[401307252,1768121447251,-2500.0,0.00015464,2]
[401307253,1768121447261,-501.72405702,0.00015464,2]
[401307254,1768121447272,-2500.0,0.00015464,2]
[401307255,1768121447282,-2500.0,0.00015464,2]
[401307256,1768121447294,-2500.0,0.00015464,2]
[401307257,1768121447304,-2500.0,0.00015464,2]
[401307258,1768121447314,-2500.0,0.00015464,2]
[401307259,1768121447325,-728.00390276,0.00015464,2]
[401307260,1768121447336,-2500.0,0.00015464,2]
[401307261,1768121447345,-381.0,0.00015527,2]
[401307262,1768121447355,-381.0,0.00015708,2]
[401307263,1768121447367,-381.0,0.00015736,2]
[401307264,1768121447378,-478.75725327,0.00015755,2]
[401307265,1768121447388,-381.0,0.00015769,2]
[401307266,1768121447400,-381.0,0.00015769,2]
[401307267,1768121447410,-640.85,0.000158,2]
[401307268,1768121447420,-381.0,0.00015838,2]
[401307269,1768121447431,-381.0,0.00015854,2]
[401307270,1768121447441,-381.0,0.00015862,2]
[401307271,1768121447451,-381.0,0.00015864,2]
[401307272,1768121447462,-555.48898116,0.0001589,2]
[401307273,1768121447472,-2500.0,0.0001589,2]
[401307274,1768121447481,-2500.0,0.0001589,2]
[401307275,1768121447491,-2000.0,0.0001589,2]
[401307276,1768121447501,-2500.0,0.0001589,2]
[401307277,1768121447510,-2500.0,0.0001589,2]
[401307278,1768121447520,-1634.65901332,0.0001589,2]
[401307279,1768121447529,-2500.0,0.0001589,2]
[401307280,1768121447539,-152.58,0.00016,2]
[401307281,1768121447549,-3000.0,0.00016012,2]
[401307282,1768121447558,-3000.0,0.00016012,2]
[401307283,1768121447570,-3000.0,0.00016012,2]
[401307284,1768121447580,-3000.0,0.00016012,2]
[401307285,1768121447590,-3000.0,0.00016012,2]
[401307286,1768121447601,-3000.0,0.00016012,2]
[401307287,1768121447609,-3000.0,0.00016012,2]
[401307288,1768121447617,-281.87,0.00016065,2]
[401307289,1768121447625,-381.0,0.0001607,2]
[401307290,1768121447634,-381.0,0.00016117,2]
[401307291,1768121447646,-1600.00734843,0.00016164,2]
[401307292,1768121447655,-1000.0,0.00016217,2]
[401307293,1768121447666,-1000.0,0.00016217,2]
[401307294,1768121447675,-579.0,0.00016217,2]
[401307295,1768121447684,-381.0,0.00016228,2]
[401307296,1768121447694,-381.0,0.00016267,2]
[401307297,1768121447703,-640.85,0.000163,2]
[401307298,1768121447712,-496.47127164,0.00016303,2]
[401307299,1768121447720,-381.0,0.0001637,2]
[401307300,1768121447729,-468.6,0.00016438,2]
[401307301,1768121447739,-594.49843147,0.00016438,2]
[401307302,1768121447749,-500.0,0.00016438,2]
[401307303,1768121447758,-500.0,0.00016438,2]
[401307304,1768121447767,-500.0,0.00016438,2]
[401307305,1768121447776,-281.92486594,0.00016438,2]
[401307306,1768121447786,-500.0,0.00016438,2]
[401307307,1768121447797,-500.0,0.00016438,2]
[401307308,1768121447808,-500.0,0.00016438,2]
[401307309,1768121447818,-500.0,0.00016438,2]
[401307310,1768121447829,-502.60955562,0.00016438,2]
[401307311,1768121447838,-1552.92932298,0.00016438,2]
[401307312,1768121447847,-3000.0,0.00016438,2]
[401307313,1768121447858,-3000.0,0.00016438,2]
[401307314,1768121447867,-3000.0,0.00016438,2]
[401307315,1768121447878,-260.15865923,0.00016438,2]
[401307316,1768121447889,-381.0,0.00016476,2]
[401307317,1768121447899,-785.76857348,0.00016537,2]
[401307318,1768121447908,-3500.0,0.0001656,2]
[401307319,1768121447917,-3500.0,0.0001656,2]
[401307320,1768121447928,-3500.0,0.0001656,2]
[401307321,1768121447938,-3500.0,0.0001656,2]
[401307322,1768121447948,-3462.04250286,0.0001656,2]
[401307323,1768121447959,-1000.0,0.0001656,2]
[401307324,1768121447968,-1000.0,0.0001656,2]
[401307325,1768121447978,-152.58,0.000166,2]
[401307326,1768121447987,-640.85,0.000168,2]
[401307327,1768121447997,-514.84070869,0.00016851,2]
[401307328,1768121448008,-1500.0,0.00016986,2]
[401307329,1768121448019,-3500.0,0.00016986,2]
[401307330,1768121448030,-3500.0,0.00016986,2]
[401307331,1768121448040,-4000.0,0.00017108,2]
[401307332,1768121448051,-4000.0,0.00017108,2]
[401307333,1768121448061,-2378.46600243,0.00017108,2]
[401307334,1768121448072,-1000.0,0.00017108,2]
[401307335,1768121448081,-640.85,0.000173,2]
[401307336,1768121448092,-152.58,0.000173,2]
[401307337,1768121448102,-533.88981491,0.00017399,2]
[401307338,1768121448112,-5000.0,0.00017412,2]
[401307339,1768121448123,-567.54835774,0.00017534,2]
[401307340,1768121448133,-500.0,0.00017534,2]
[401307341,1768121448143,-3400.70849444,0.00017656,2]
[401307342,1768121448156,-2500.0,0.00017656,2]
[401307343,1768121448171,-1087.80747027,0.00017748,2]
[401307344,1768121448180,-640.85,0.000178,2]
[401307345,1768121448190,-1000.0,0.00017839,2]
[401307346,1768121448201,-1000.0,0.00017839,2]
[401307347,1768121448210,-1000.0,0.00017839,2]
[401307348,1768121448221,-152.58,0.000179,2]
[401307349,1768121448230,-562.55157284,0.00017947,2]
[401307350,1768121448240,-640.85,0.000183,2]
[401307351,1768121448250,-468.6,0.00018315,2]
[401307352,1768121448260,-585.11053,0.00018493,2]
[401307353,1768121448269,-152.58,0.000185,2]
[401307354,1768121448279,-860.20980676,0.00018537,2]
[401307355,1768121448289,-5000.0,0.00018863,2]
[401307356,1768121448298,-640.85,0.000189,2]
[401307357,1768121448307,-303.10001603,0.000189,2]
[401307358,1768121448317,-303.10001603,0.00019089,2]
[401307359,1768121448327,-152.58,0.000191,2]
[401307360,1768121448337,-506.7938,0.00019178,2]
[401307361,1768121448347,-200.0,0.00019178,2]
[401307362,1768121448357,-506.7938,0.00019178,2]
[401307363,1768121448367,-2378.23,0.000192,2]
[401307364,1768121448377,-163.88,0.000192,2]
[401307365,1768121448387,-166.96,0.000192,2]
[401307366,1768121448396,-16224.21,0.000192,2]
[401307367,1768121448405,-167.58,0.000192,2]
[401307368,1768121448414,-303.10001603,0.00019278,2]
[401307369,1768121448423,-640.85,0.000194,2]
[401307370,1768121448432,-303.10001603,0.00019467,2]
[401307371,1768121448443,-1000.0,0.00019623,2]
[401307372,1768121448453,-1000.0,0.00019623,2]
[401307373,1768121448463,-1000.0,0.00019623,2]
[401307374,1768121448472,-715.0,0.00019623,2]
[401307375,1768121448482,-303.10001603,0.00019656,2]
[401307376,1768121448491,-152.58,0.000197,2]
[401307377,1768121448503,-454.65002405,0.00019845,4]
[401307378,1768121448513,-640.85,0.000199,2]
[401307379,1768121448522,-506.7938,0.0002,4]
[401307380,1768121448532,-506.7938,0.0002,4]
[401307381,1768121448540,-151.97857558,0.0002,2]
[401307382,1768121448550,-454.65002405,0.00020034,4]
[401307383,1768121448560,-1087.80747027,0.00020131,2]
[401307384,1768121448570,-468.6,0.00020192,2]
[401307385,1768121448580,-454.65002405,0.00020223,4]